Cogmind - Beta 14 @@@ ROGUE MODE // 2024.08.17 @ 17:07:47 Player: youngster Result: Destroyed by G-47 Trooper with Particle Gun Performance ------------- Evolutions (1) 500 Regions Visited (6) 1200 Robots Destroyed (101) 505 Value Destroyed (1791) 1791 Prototype IDs (41) 820 Alien Tech Used (0) 0 Bonus (-152) -152 TOTAL SCORE: 4664 Bonus ------- High Alert Combat Kills 22 Follower Combat Kills 251 Aligned with FarCom 300 Friendly Fire -725 Cogmind --------- Core Integrity 0/400 Matter 220/300 Energy 125/125 System Corruption 8% Temperature Cool (36) Movement Treading (240) Ox1 Location -8/Mines Parts ------- > --- POWER (1) -------- Light Ion Engine > --- PROPULSION (2) --- Light Treads Light Treads > --- UTILITY (4) ------ Advanced Heat Sink High-capacity Storage Unit Seismic Detector Light Armor Plating (fused) > --- WEAPON (2) ------- Grenade Launcher Ripper > --- INVENTORY (20) --- Ion Engine Nuclear Core Reinforced Deuterium Engine Light Fission Core Light Treads Compact Wheel YI-UF0's Bottomless Matter Pit (1500) Experimental Sensor Array Salvage Targeting Computer Cloak of Protection High-powered Tractor Beam YOLO Cannon Assault Rifle Improved Assault Rifle Improved Assault Rifle Rocket Launcher Datajack Flail Blade Trap Peak State ------------ > --- POWER ------------ Light Deuterium Engine > --- PROPULSION ------- Light Treads Improved Treads > --- UTILITY ---------- High-capacity Storage Unit YI-UF0's Bottomless Matter Pit Seismic Detector Light Armor Plating > --- WEAPON ----------- Improved Assault Rifle Ripper > --- INVENTORY -------- Ion Engine Light Treads Light Treads Light Treads Compact Wheel High-capacity Matter Pod Experimental Sensor Array Salvage Targeting Computer Improved Targeting Computer High-powered Tractor Beam Assault Rifle Assault Rifle Assault Rifle Heavy Assault Rifle Improved Assault Rifle Improved Assault Rifle Grenade Launcher Datajack Flail Blade Trap [Rating: 28] Favorites ----------- Power Light Deuterium Engine Engine Light Deuterium Engine Propulsion Light Treads Treads Light Treads Utility High-capacity Storage Unit Device Seismic Detector Storage High-capacity Storage Unit Processor Improved Targeting Computer Protection Light Armor Plating Weapon Assault Rifle Energy Gun Medium Laser Ballistic Gun Assault Rifle Launcher Rocket Launcher Slashing Weapon Ripper Special Melee Weapon Datajack Build | -11 -10 -10 -9 -9 -9 -8 ------- Run | Yrd Mat Min Mat Min Exi Min Slots Evolved 2 | . . . 2 . . . Power . | . . . . . . . Propulsion . | . . . . . . . Utility 2 | . . . 2 . . . Weapon . | . . . . . . . Parts Attached 85 | 7 14 3 28 31 2 . Power 6 | 1 1 . 3 1 . . Engine 6 | 1 1 . 3 1 . . Core . | . . . . . . . Reactor . | . . . . . . . Propulsion 16 | 2 3 . 7 4 . . Treads 16 | 2 3 . 7 4 . . Leg . | . . . . . . . Wheel . | . . . . . . . Hover . | . . . . . . . Flight . | . . . . . . . Utility 28 | 1 7 1 9 9 1 . Device 13 | 1 6 1 1 4 . . Storage 3 | . 1 . . 1 1 . Processor 1 | . . . . 1 . . Hackware . | . . . . . . . Protection 11 | . . . 8 3 . . Artifact . | . . . . . . . Weapon 35 | 3 3 2 9 17 1 . Energy Gun 2 | 1 1 . . . . . Energy Cannon . | . . . . . . . Ballistic Gun 17 | 2 2 1 5 7 . . Ballistic Cannon . | . . . . . . . Launcher 10 | . . 1 2 6 1 . Special Weapon . | . . . . . . . Impact Weapon . | . . . . . . . Slashing Weapon 5 | . . . 2 3 . . Piercing Weapon . | . . . . . . . Special Melee Weapon 1 | . . . . 1 . . Unidentified Prototypes 3 | . . . 1 2 . . Parts Lost 20 | . 1 . 6 13 . . Power 3 | . . . 2 1 . . Propulsion 4 | . . . 1 3 . . Utility 7 | . . . 2 5 . . Weapon 6 | . 1 . 1 4 . . Highest Loss Streak 6 | . 1 . 3 6 . . To Critical Strikes . | . . . . . . . Average Slot Usage (%) 95 | . 99 100 97 90 100 . Engine 11 | . 14 14 10 10 11 . Treads 24 | . 27 28 22 21 22 . Device 15 | . 14 14 10 17 22 . Storage 11 | . 13 14 11 11 11 . Protection 7 | . . . 19 7 11 . Energy Gun 4 | . 8 14 1 . . . Ballistic Gun 13 | . 19 13 14 12 . . Slashing Weapon 5 | . . . 5 8 11 . Special Melee Weapon 1 | . . . . . 10 . Peak Build Rating 28 | 6 10 10 20 28 23 23 Average Rating 14 | 4 8 9 17 18 21 23 On Entrance 12 | . 6 8 10 18 20 23 Naked Turns . | . . . . . . . Heaviest Build 59 | 10 50 52 59 59 54 . Greatest Support 43 | 40 40 40 43 43 40 . Greatest Overweight (x) 2 | . 1 1 2 1 1 . Average Overweight (x) . | . . 1 1 1 1 . Largest Inventory Capacity 20 | 5 20 20 20 20 20 20 Average Capacity 19 | 5 19 20 20 20 20 20 Most Carried 20 | 4 11 18 20 20 20 20 Average Carried 15 | 1 8 15 18 16 18 20 Final Capacity 20 | 5 20 20 20 20 20 20 Final Carried 20 | 4 11 18 18 15 20 20 Class Distribution -------------------- 73% | Mutant 26% | Scavenger-Mutant Dominant Class ---------------- Mutant | -10/Materials Mutant | -10/Mines Mutant | -9/Materials Mutant | -9/Mines Scavenger-Mutant | -9/Exiles Scavenger-Mutant | -8/Mines Resources | -11 -10 -10 -9 -9 -9 -8 ----------- Run | Yrd Mat Min Mat Min Exi Min Matter Collected 4162 | 303 400 339 487 2546 87 . Remotely . | . . . . . . . Salvage Created 3514 | 145 519 151 1213 1486 . . Parts 210 | 10 40 10 72 78 . . Haulers Intercepted 5 | . 2 . 3 . . . Recyclers Shooed 4 | . . . 1 3 . . Parts Field Recycled . | . . . . . . . Retrieved Matter . | . . . . . . . Parts Self-Destructed . | . . . . . . . Prevented . | . . . . . . . Kills | -11 -10 -10 -9 -9 -9 -8 ------- Run | Yrd Mat Min Mat Min Exi Min Combat Hostiles Destroyed 65 | . 13 3 27 22 . . Melee 18 | . . . 16 2 . . Guns 31 | . 13 1 8 9 . . AOE 16 | . . 2 3 11 . . Classes Destroyed 12 | 2 4 1 1 4 . . Worker 9 | . . 1 2 6 . . Builder 2 | . . . . 2 . . Tunneler 10 | 3 . 1 . 6 . . Hauler 5 | . 2 . 3 . . . Recycler 16 | 1 . . 3 12 . . Watcher 3 | . 2 . 1 . . . Swarmer 21 | . 6 . 12 3 . . Grunt 27 | . 7 3 11 6 . . Brawler 1 | . . . . 1 . . Sentry 4 | . . . 4 . . . Demolisher 2 | . . . . 2 . . Assembled 10 | . . . . 10 . . Best Kill Streak 6 | 3 3 2 6 6 . . Combat Bots Only 6 | . 3 2 4 6 . . Max Kills in Single Turn 2 | 1 2 2 2 2 . . Gunslinging 1 | . 1 . . . . . Exploded 2 | . . 2 2 2 . . Melee 1 | . . . 1 1 . . Uniques/NPCs Destroyed 1 | . . . . 1 . . YI-UF0 (-9/Mines) Combat | -11 -10 -10 -9 -9 -9 -8 -------- Run | Yrd Mat Min Mat Min Exi Min Hostile Shots Fired 330 | . 85 1 137 104 . 3 Missed 80 | . 25 . 32 22 . 1 Damage Taken 3498 | . 697 17 1103 1584 40 57 Core 527 | . 116 . 157 210 . 44 Absorbed by Shields . | . . . . . . . Redirected to Shielding 9 | . . . . 9 . . Regen/Repaired (Parts) 387 | . 121 . 266 . . . Core Remaining (%) 76 | 100 . 53 . . . . Volleys Fired 155 | 8 55 4 46 41 . 1 Largest 2 | 2 2 2 2 2 . 1 Hottest 70 | 70 70 70 70 70 . 30 Shots Fired 284 | 16 108 7 87 64 1 1 Gun 260 | 16 108 6 84 46 . . Cannon . | . . . . . . . Launcher 24 | . . 1 3 18 1 1 Special . | . . . . . . . Kinetic 218 | 11 91 3 67 46 . . Thermal 42 | 5 17 3 17 . . . Explosive 24 | . . 1 3 18 1 1 Electromagnetic . | . . . . . . . Robot Hit Streak 10 | 4 10 5 9 8 . . Robot Miss Streak 4 | 2 3 1 3 4 . . Penetration Max . | . . . . . . . Secondary Targets 5 | . 2 . . 3 . . Max Gunslinging Chain 1 | . 1 . . 1 . . Shots Hit Robots 256 | 9 70 4 90 79 4 . Core Hits 144 | 5 26 5 45 58 . 5 Critical Kills 1 | . 1 . . . . . Critical Parts Destroyed 1 | . . . . 1 . . Critical Strikes 6 | . 1 . 3 2 . . Destroy 2 | . 1 . . 1 . . Sever 4 | . . . 3 1 . . Melee Attacks 103 | . . . 51 48 4 . Impact . | . . . . . . . Slashing 99 | . . . 51 48 . . Piercing . | . . . . . . . Sneak Attacks 41 | . . . 4 33 4 . Combat Hostiles 2 | . . . 2 . . . Follow-up Attacks . | . . . . . . . Damage Inflicted 8003 | 142 875 182 2455 4264 . 85 Guns 2304 | 142 875 52 819 416 . . Cannons . | . . . . . . . Explosions 1572 | . . 114 228 1145 . 85 Melee 4092 | . . . 1389 2703 . . Ramming 35 | . . 16 19 . . . Kinetic 2002 | 105 750 26 705 416 . . Thermal 509 | 37 125 64 114 169 . . Explosive 1365 | . . 76 228 976 . 85 Electromagnetic . | . . . . . . . Impact . | . . . . . . . Slashing 4092 | . . . 1389 2703 . . Piercing . | . . . . . . . Highest Corruption 8 | . 3 3 . 8 8 8 Average Corruption 3 | . 1 3 . 3 8 8 Corruption Purged . | . . . . . . . Corruption Blocked . | . . . . . . . Effects 120 | . 21 22 . 48 29 . Message Errors 43 | . 8 11 . 16 8 . Matter Fused 33 | . 6 5 . 12 10 . Heat Flow Errors 3 | . . 1 . 1 1 . Energy Discharges 18 | . 4 1 . 9 4 . Parts Fused 2 | . . 1 . . 1 . Data Loss (minor) 14 | . 3 3 . 5 3 . Data Loss (major) 2 | . . . . 2 . . Misfires 3 | . . . . 2 1 . Alerts 2 | . . . . 1 1 . Overload Shots . | . . . . . . . Overflow Damage 834 | . . . 46 788 . . Projectiles . | . . . . . . . Explosions 14 | . . . . 14 . . Melee 820 | . . . 46 774 . . Knockbacks 1 | . . . 1 . . . Impact 1 | . . . 1 . . . Kinetic . | . . . . . . . Secondary . | . . . . . . . Self-Inflicted Damage 122 | . . . . 56 40 26 Shots 4 | . . . . 2 1 1 Rammed 4 | . . 1 3 . . . Targets Rammed 5 | . . 2 3 . . . Kicked . | . . . . . . . Crushed 1 | . . 1 . . . . Highest Temperature 244 | 21 72 149 163 202 244 . Average Temperature 41 | 16 21 44 44 44 129 . Received Heat Transfer 1021 | . 180 9 297 499 . 36 Siege Activations . | . . . . . . . Robots Corrupted . | . . . . . . . Combat Hostiles . | . . . . . . . Parts Fried . | . . . . . . . Impact Corruptions . | . . . . . . . Robots Melted . | . . . . . . . Combat Hostiles . | . . . . . . . Parts Melted 1 | . 1 . . . . . Heat Transferred 1188 | 111 370 124 333 250 . . Parts Sabotaged . | . . . . . . . Parts Stolen . | . . . . . . . Parts Stripped . | . . . . . . . Power Chain Reactions . | . . . . . . . Alert | -11 -10 -10 -9 -9 -9 -8 ------- Run | Yrd Mat Min Mat Min Exi Min Peak Influence 459 | 20 155 118 459 366 . 5 Initial 116 | . 13 . . 116 . . Average 103 | 8 51 35 242 80 . 5 Maximum Alert Level 2 | . . . 2 1 . . Low Security (%) 81 | 100 100 100 37 88 . 100 Level 1 14 | . . . 42 11 . . Level 2 4 | . . . 19 . . . Level 3 . | . . . . . . . Level 4 . | . . . . . . . Level 5 . | . . . . . . . High Security . | . . . . . . . Max Security . | . . . . . . . Squads Dispatched 9 | . 2 1 6 . . . Investigation 4 | . 1 . 3 . . . Extermination . | . . . . . . . Reinforcement 4 | . 1 . 3 . . . Assault 1 | . . 1 . . . . Garrison . | . . . . . . . Intercept . | . . . . . . . Searches Triggered . | . . . . . . . Construction Impeded . | . . . . . . . Haulers Reinforced . | . . . . . . . Active Scanning Responses . | . . . . . . . Cargo Convoy Interrupts . | . . . . . . . Stealth | -11 -10 -10 -9 -9 -9 -8 --------- Run | Yrd Mat Min Mat Min Exi Min Distress Signals 9 | . 2 . 7 . . . Communications Jammed . | . . . . . . . Distress Signals . | . . . . . . . Times Spotted 115 | . 23 3 49 37 . 3 Peak Tracking Total 12 | . 4 4 7 12 . 3 Tactical Retreats 7 | . . 1 6 . . . Traps | -11 -10 -10 -9 -9 -9 -8 ------- Run | Yrd Mat Min Mat Min Exi Min Traps Triggered 6 | . 4 . 2 . . . Indirectly . | . . . . . . . Trap Hack Attempts . | . . . . . . . Triggered . | . . . . . . . Disarmed . | . . . . . . . Reprogrammed . | . . . . . . . Reused . | . . . . . . . Traps Extracted . | . . . . . . . Installed 1 | . . 1 . . . . Triggered . | . . . . . . . Most Traps Carried 2 | . . 2 2 1 1 . Machines | -11 -10 -10 -9 -9 -9 -8 ---------- Run | Yrd Mat Min Mat Min Exi Min Machines Disabled 3 | . . 1 . 1 1 . Max in Single Turn 1 | . . 1 . 1 1 . Machines Repaired . | . . . . . . . Machines Dismantled . | . . . . . . . Machines Sabotaged . | . . . . . . . Overloaded Fab Kills . | . . . . . . . Hacking | -11 -10 -10 -9 -9 -9 -8 --------- Run | Yrd Mat Min Mat Min Exi Min Machines Accessed 19 | . 8 . 9 . 2 . Terminals 14 | . 7 . 7 . . . Fabricators . | . . . . . . . Repair Stations 2 | . 1 . 1 . . . Recycling Units . | . . . . . . . Scanalyzers 1 | . . . 1 . . . Garrison Access . | . . . . . . . Total Hacks 57 | . 26 . 29 . 2 . Successful 28 | . 9 . 17 . 2 . Failed 29 | . 17 . 12 . . . Catastrophic 4 | . 3 . 1 . . . Database Lockouts . | . . . . . . . Manual 41 | . 23 . 17 . 1 . Terminals 41 | . 24 . 17 . . . Fabricators . | . . . . . . . Repair Stations 10 | . 2 . 8 . . . Recycling Units . | . . . . . . . Scanalyzers 4 | . . . 4 . . . Garrison Access . | . . . . . . . Terminal Hacks 8 | . 2 . 4 . 2 . Record 1 | . . . . . 1 . Part Schematic 1 | . . . 1 . . . Robot Schematic 1 | . . . 1 . . . Robot Analysis 1 | . . . 1 . . . Unreport Threat 1 | . . . 1 . . . Locate Traps 2 | . 2 . . . . . Derelict Proto ID Bank 1 | . . . . . 1 . Fabricator Hacks . | . . . . . . . Repair Station Hacks 8 | . 2 . 6 . . . Scan Component 4 | . 1 . 3 . . . Repair 4 | . 1 . 3 . . . Recycling Unit Hacks . | . . . . . . . Scanalyzer 2 | . . . 2 . . . Insert Component 1 | . . . 1 . . . Analyze 1 | . . . 1 . . . Garrison Access Hacks . | . . . . . . . Unauthorized Hacks 10 | . 5 . 5 . . . Terminals 10 | . 5 . 5 . . . Skim 10 | . 5 . 5 . . . Fabricators . | . . . . . . . Repair Stations . | . . . . . . . Recycling Units . | . . . . . . . Scanalyzers . | . . . . . . . Garrison Access . | . . . . . . . Data Cores Recovered 1 | . . . 1 . . . Used . | . . . . . . . Hacking Detections 17 | . 8 . 9 . . . Full Trace Events 1 | . . . 1 . . . Feedback Events . | . . . . . . . Feedback Blocked . | . . . . . . . Robot Schematics Acquired 1 | . . . 1 . . . Robots Built . | . . . . . . . Authchips . | . . . . . . . Time . | . . . . . . . Total Robot Build Rating . | . . . . . . . Part Schematics Acquired 1 | . . . 1 . . . Parts Built . | . . . . . . . Authchips . | . . . . . . . Time . | . . . . . . . Total Part Build Rating . | . . . . . . . Parts Repaired 4 | . 1 . 3 . . . Time 104 | . 26 . 78 . . . Parts Recycled . | . . . . . . . Recycled Matter . | . . . . . . . Retrieved Matter . | . . . . . . . Retrieved Components . | . . . . . . . Parts Scanalyzed 1 | . . . 1 . . . Part Schematics Acquired . | . . . . . . . Parts Damaged . | . . . . . . . Bothacking | -11 -10 -10 -9 -9 -9 -8 ------------ Run | Yrd Mat Min Mat Min Exi Min Used RIF Installer . | . . . . . . . Robots Hacked 4 | . . . . . 4 . Non-combat 3 | . . . . . 3 . Combat 1 | . . . . . 1 . Robot Hacks Applied 4 | . . . . . 4 . parse_system 4 | . . . . . 4 . Relay Couplers Released . | . . . . . . . Fabnet Peak Effective % . | . . . . . . . Robots Rewired . | . . . . . . . Allies Hacked . | . . . . . . . Hacks Repelled . | . . . . . . . Allies | -11 -10 -10 -9 -9 -9 -8 -------- Run | Yrd Mat Min Mat Min Exi Min Total Allies 4 | . . 4 . . . . Largest Group 3 | . . 3 2 . . . Highest-Rated Group 40 | . . 40 24 . . . Highest-Rated Ally 31 | . . 31 16 . . . Total Orders . | . . . . . . . Ally Attacks 58 | . . 21 37 . . . Total Damage 655 | . . 307 348 . . . Kills 10 | . . 5 5 . . . Allies Corrupted . | . . . . . . . Allies Melted . | . . . . . . . Intel | -11 -10 -10 -9 -9 -9 -8 ------- Run | Yrd Mat Min Mat Min Exi Min Robot Analysis Total 1 | . . . 1 . . . Derelict Logs Recovered 2 | . . 1 . 1 . . Drone Launches . | . . . . . . . Drone Recoveries . | . . . . . . . Exploration | -11 -10 -10 -9 -9 -9 -8 ------------- Run | Yrd Mat Min Mat Min Exi Min Turns Passed 8820 | 119 1867 1212 1861 2881 879 1 Spaces Moved 3062 | 55 593 479 505 1070 360 . Core 5 | 5 . . . . . . Treads 3057 | 50 593 479 505 1070 360 . Legs . | . . . . . . . Wheels . | . . . . . . . Hover . | . . . . . . . Flight . | . . . . . . . Fastest Speed 50 | 50 160 240 240 240 240 . Average Speed 237 | 150 234 240 240 240 240 . Slowest Speed 320 | 160 240 240 320 240 240 . Overloaded Moves . | . . . . . . . Propulsion Burnouts . | . . . . . . . Robots Hopped . | . . . . . . . Cave-ins Triggered 1 | . . . . 1 . . Exploration Rate (%) 59 | 4 97 95 51 97 70 3 Regions Visited 6 Branch Regions 4 Pre-discovered Areas 3 | . . . 1 1 1 . Known Exits Taken 2 | . . . 1 . 1 . Unknown Exits Taken 4 | 1 1 1 . 1 . . Scrap Searched 3 | . . 1 . 2 . . Spaces Dug 59 | . . . 5 49 . 5 Terrain Destroyed 207 | . . 21 29 147 5 5 Melee 8 | . . . 5 3 . . Projectile . | . . . . . . . AOE 199 | . . 21 24 144 5 5 Terrain Rammed . | . . . . . . . Walls Destroyed . | . . . . . . . Machines Disabled . | . . . . . . . Actions | -11 -10 -10 -9 -9 -9 -8 --------- Run | Yrd Mat Min Mat Min Exi Min Total 4169 | 73 958 532 987 1244 374 1 Wait 696 | . 291 36 330 39 . . Move 3056 | 54 592 478 504 1069 359 . Hop . | . . . . . . . Pick Up 38 | 3 5 7 11 6 6 . Fast Attach 25 | 7 3 . 5 10 . . Attach 16 | . 1 . 6 9 . . Detach 4 | 1 . . . 3 . . Swap 45 | . 10 3 18 12 2 . Drop 25 | . 1 1 13 7 3 . Fire 155 | 8 55 4 46 41 . 1 Melee 103 | . . . 51 48 4 . Ram . | . . . . . . . Kick . | . . . . . . . Crush 5 | . . 2 3 . . . Escape Stasis . | . . . . . . . Rewire . | . . . . . . . Trap 1 | . . 1 . . . . Miscellaneous . | . . . . . . . Route ------- -11/Scrapyard -10/Materials (discovered 4 exits: *Mat x3 / [*Min]) -10/Mines (discovered 3 exits: *Mat x2 / [*Sub]) -9/Materials (discovered 3 exits: Mat x2 / *Min) -9/Mines (discovered 3 exits: *Mat x2 / *Exi) -9/Exiles (discovered 2 exits: *Min x2) -8/Mines History --------- Turn | Location | Event 9 | -11/Scrapyard | Discovered new exit (range 15) 120 | -11/Scrapyard | Entered Materials 308 | -10/Materials | Build established: Mutant 520 | -10/Materials | Discovered new exit (range 10) 910 | -10/Materials | Discovered new exit (range 12) 1033 | -10/Materials | Discovered new exit (range 3) 1124 | -10/Materials | Repaired Lgt. Treads 1366 | -10/Materials | Discovered new exit (range 10) 1749 | -10/Materials | Learned Storage terminal intel 1803 | -10/Materials | Learned location of 2 exits from Subcaves 1848 | -10/Materials | Learned location of 2 exits from Subcaves 1904 | -10/Materials | Loaded intel: 8 trap records 1937 | -10/Materials | Learned Storage emergency access door positions 1981 | -10/Materials | Learned 4 Recycling zone layouts 1987 | -10/Materials | Entered Mines 1988 | -10/Mines | Met a Derelict testing a Signal Generator 2081 | -10/Mines | Received a Rocket Launcher from a helpful Derelict 2295 | -10/Mines | A weapon hastily lodged in a ceiling crevice suddenly fell to the ground 2455 | -10/Mines | Found a hidden stash of uninstalled traps 2510 | -10/Mines | Found a damaged Exp. Sensor Array with a note attached 2515 | -10/Mines | Found Prototype Device 2523 | -10/Mines | Discovered new exit (range 7) 2687 | -10/Mines | Discovered new exit (range 9) 2715 | -10/Mines | Learned Materials terminal intel 2917 | -10/Mines | Assisted by bots powering up and referring to "LRC-V3" 2979 | -10/Mines | Discovered new exit (range 5) 3199 | -10/Mines | Entered Materials 3199 | -9/Materials | Accompanied by 2 allies 3199 | -9/Materials | Evolved 2 slots: Utility x2 3200 | -9/Materials | Identified exit to Mines 3201 | -9/Materials | Loaded intel: 12 terminal locations 3613 | -9/Materials | Build established: Scavenger-Mutant 4063 | -9/Materials | Build established: Mutant 4284 | -9/Materials | Lost 3 parts (1p2u) 4507 | -9/Materials | Repaired Lgt. Treads 4533 | -9/Materials | Repaired Lgt. Armor Plating 4559 | -9/Materials | Repaired Lgt. Armor Plating 4695 | -9/Materials | Identified Exp. Sensor Array 4793 | -9/Materials | Learned Storage emergency access door positions 4851 | -9/Materials | Learned 2 Storage zone layouts 4898 | -9/Materials | Learned Materials terminal intel 4935 | -9/Materials | Learned location of Zion (-6) 4962 | -9/Materials | Learned 2 Storage zone layouts 5000 | -9/Materials | Identified exit to Materials 5047 | -9/Materials | Learned Storage stockpile data 5060 | -9/Materials | Entered Mines 5392 | -9/Mines | Discovered exit to Materials (range 10) 5587 | -9/Mines | Build established: Scavenger-Mutant 5618 | -9/Mines | YI-UF0 nonchalantly dropped a Grenade Launcher on the ground 5625 | -9/Mines | Murdered YI-UF0 5633 | -9/Mines | Found Prototype Storage 5633 | -9/Mines | Identified YI-UF0's Bottomless Matter Pit 5640 | -9/Mines | Found Prototype Launcher 5640 | -9/Mines | Identified YI-UF0's Doublenader 5674 | -9/Mines | Learned Materials terminal intel 5769 | -9/Mines | Assembled infested the area 5774 | -9/Mines | Assisted by a Guerilla fighting off Assembled 5827 | -9/Mines | Crushed by falling debris 5833 | -9/Mines | Core integrity fell below 50% 5867 | -9/Mines | Lost 6 parts (2n3u1w) 5947 | -9/Mines | Build established: Mutant 5980 | -9/Mines | Core integrity fell below 20% 6473 | -9/Mines | Deemed a non-threat by the Exiles lab entrance 6473 | -9/Mines | Discovered new exit (range 5) 6695 | -9/Mines | Learned location of Storage (-8) 7332 | -9/Mines | Discovered exit to Materials (range 5) 7668 | -9/Mines | Lost 3 parts (1p1n1u) 7937 | -9/Mines | Build established: Scavenger-Mutant 7941 | -9/Mines | Entered Exiles 7942 | -9/Exiles | Identified exit to Mines 8004 | -9/Exiles | Met 8R-AWN 8047 | -9/Exiles | Met EX-HEX 8187 | -9/Exiles | Met EX-DEC 8299 | -9/Exiles | Met EX-BIN 8334 | -9/Exiles | Aligned with FarCom system 8336 | -9/Exiles | Given EX-Vault access code 8392 | -9/Exiles | Opened EX-Vault 8406 | -9/Exiles | Found Cloak of Protection 8457 | -9/Exiles | Warned to stay clear of 0b10 Research branches 8558 | -9/Exiles | Found PSU Rigger 8565 | -9/Exiles | Found YOLO Cannon 8791 | -9/Exiles | Discovered exit to Mines (range 14) 8820 | -9/Exiles | Stole two prototypes: Cloak of Protection, YOLO Cannon 8820 | -9/Exiles | Entered Mines 8821 | -8/Mines | Destroyed by G-47 Trooper with Particle Gun Last Messages --------------- emitted. 08558_ Acquired PSU Rigger. 08559_ Dropped PSU Rigger. 08560_ Dropped Assault Rifle. 08565_ Acquired YOLO Cannon. 08605_ System corrupted: Component data lost. 08648_ System corrupted: Matter fused (-5). 08680_ 6,#&VWXGYIB,XH5%1IHKKCHCUGX 08729_ 7PJH2SH|GEUUJ1 TA0WQW6PYTUL 08791_ EXIT=FOUND: MINES 08796_ System corrupted: FCS attempts to trigger Grenade Launcher. 08796_ System corrupted: Grenade Launcher misfires. 08796_ Machine disabled. 08815_ System corrupted: Matter fused (-5). LOCATION=MINES GOAL=ESCAPE 08820_ Receiving FarCom transmissions... 08821_ Critical hit (Burn: +37). Map ----- +----------------------------------------------------+ | ?????????????????????????????????????????????????? | | ?????????????????????????????????????????????????? | | ?????????????????????????????????????????????????? | | ?????????????????????????????????????????????????? | | ?????????????????????????????????????????????????? | | ?????????????????????????????????????????????????? | | ?????????????????????????????????????????????????? | | ?????????????????????????????????????????????????? | | ?????????????????????????????????????????????????? | | ?????????????????????????????????????????????????? | | ?????????????????????????????????????????????????? | | ?????????????????????????????????????????????????? | | ?????????????????????????????????????????????????? | | ?????????????????????????????????????????????????? | | ?????????????????????????????????????????????????? | | ?????????????????????????????????????????????????? | | ?????????????????????????????????????????????????? | | ?????????????????????????????????????????????????? | | ?????????????????????????????#???????????????????? | | ???????????????????????????? #???????????????????? | | ???????????????????????????? #???????????????????? | | ??????????????????????????? #???????????????????? | | ???????????????????????#### #???????????????????? | | ?????????????????????### #???????????????????? | | ?????????????????????# #???????????????????? | | ?????????????????????# g @ #????????????????????? | | ????????????????????# g #????????????????????? | | ????????????????????# #????????????????????? | | ????????????????????# g ???????????????????? | | ????????????????????# ####??????????????????? | | ????????????????????## ## #?????????????????????? | | ?????????????????????###?? #?????????????????????? | | ?????????????????????????? #?????????????????????? | | ?????????????????????????? ?????????????????????? | | ?????????????????????????? ?????????????????????? | | ??????????????????????????##?????????????????????? | | ?????????????????????????????????????????????????? | | ?????????????????????????????????????????????????? | | ?????????????????????????????????????????????????? | | ?????????????????????????????????????????????????? | | ?????????????????????????????????????????????????? | | ?????????????????????????????????????????????????? | | ?????????????????????????????????????????????????? | | ?????????????????????????????????????????????????? | | ?????????????????????????????????????????????????? | | ?????????????????????????????????????????????????? | | ?????????????????????????????????????????????????? | | ?????????????????????????????????????????????????? | | ?????????????????????????????????????????????????? | | ?????????????????????????????????????????????????? | +----------------------------------------------------+ Best States ------------- Heat Dissipation 47 Energy Generation 14 Energy Capacity 250 Matter Stores 300 Matter Capacity 300 Sight Range 16 Terrain Scan Range 16 Terrain Scan Density 10 Armor Coverage 450 Weapon Shielding 33 Evasion (%) 40 Recoil Reduction 2 Item Schematics ----------------- Huge Storage Unit | -9/Materials | Hacked Robot Schematics ------------------ M-13 Machinist | -9/Materials | Hacked Fabricated ------------ Nothing Alien Tech Used ----------------- None Achievements -------------- None Challenges ------------ None Game ------ Seed HardcellRelayProcessor Manual? 0 Play Time 00:40:06 Cumulative 498.1 hours Start 2024.08.17 @ 16:27:19 End 2024.08.17 @ 17:07:47 Sessions 1 Manual Loads 0 Difficulty Rogue Special Mode None Game No. 228 Rogue 228 Adventurer 0 Explorer 0 Win Type - Total 12 Types 9/0/1/1/0/0/0/1/0 Lore% 68 Gallery% 89 Achievement% 72 Wizard Run 0 Options --------- Layout 2 ASCII 0 Keyboard 1 Movement Vi Keybinds 0 Fullscreen 2 Font 32/SmallcapsGlow Map View 50x44 Zoom Use 0% Tactical HUD 1 Map Filters NONE Filters NONE Steam 0 RUN: 60ba0998-cc1f-4f41-a040-2de4e21ae169